[Event "26th Hit Open-A 2022"]
[Site "Nova Gorica"]
[Date "2022.09.15"]
[Round "1.39"]
[White "Bajo, Tin"]
[Black "Mocic, Ivano"]
[Result "1-0"]
[ECO "B18"]
[WhiteElo "1999"]
[BlackElo "1672"]
[Annotator "ChessBase"]
[PlyCount "105"]
[EventDate "2022.09.16"]
[EventType "swiss"]
[EventCountry "SLO"]
[SourceTitle "playchess.com"]
[Source "ChessBase"]
[SourceQuality "1"]
[TimeControl "5400+30"]

1. e4 {[%emt 0:00:03]} c6 {[%emt 0:00:17]} 2. d4 {[%emt 0:00:06]} d5 {[%emt 0:00:05]} 3. Nc3 {[%emt 0:00:33]} dxe4 {[%emt 0:00:07]} 4. Nxe4 {[%emt 0:00:04]} Bf5 {[%emt 0:00:34]} 5. Ng3 {[%emt 0:00:05]} Bg6 {[%emt 0:00:02]} 6. Nf3 {[%emt 0:00:10]} Nd7 {[%emt 0:00:18]} 7. Bd3 {[%emt 0:00:38]} Bxd3 {[%emt 0:01:11]} 8. Qxd3 {[%emt 0:00:06]} e6 {[%emt 0:00:28]} 9. Bf4 {[%emt 0:01:53]} Ngf6 {[%emt 0:00:59]} 10. O-O {[%emt 0:00:25]} Be7 {[%emt 0:00:52]} 11. Rfe1 {[%emt 0:01:28]} O-O {[%emt 0:01:01]} 12. c3 {[%emt 0:01:59]} c5 {[%emt 0:07:23]} 13. Rad1 {[%emt 0:07:25]} cxd4 {[%emt 0:11:15]} 14. Nxd4 {[%emt 0:01:38]} Nd5 {[%emt 0:07:42]} 15. Bc1 {[%emt 0:04:42]} N7f6 {[%emt 0:07:25]} 16. Ne4 {[%emt 0:04:11]} Qb6 {[%emt 0:08:44]} 17. Qg3 {[%emt 0:09:05]} Qc7 {[%emt 0:09:49]} 18. Nxf6+ {[%emt 0:03:06]} Bxf6 {[%emt 0:00:52]} 19. Qg4 {[%emt 0:01:28]} Rad8 {[%emt 0:09:27]} 20. a3 {[%emt 0:17:20]} g6 {[%emt 0:06:23]} 21. Qf3 {[%emt 0:05:41]} Bg7 {[%emt 0:01:42]} 22. h4 {[%emt 0:01:29]} h5 {[%emt 0:02:59]} 23. Rd3 {[%emt 0:01:49]} a6 {[%emt 0:02:14]} 24. Red1 {[%emt 0:01:58]} Ne7 {[%emt 0:03:50]} 25. Bg5 {[%emt 0:02:02]} e5 {[%emt 0:04:19]} 26. Nc2 {[%emt 0:05:39]} Rxd3 {[%emt 0:02:33]} 27. Qxd3 {[%emt 0:00:43]} Nf5 {[%emt 0:02:32]} 28. g3 {[%emt 0:01:39]} Qb6 {[%emt 0:01:37]} 29. b4 {[%emt 0:09:37]} e4 {[%emt 0:00:45]} 30. Qxe4 {[%emt 0:01:18]} Nxg3 {[%emt 0:01:00]} 31. Qf3 {[%emt 0:00:43]} Nf5 {[%emt 0:00:23]} 32. Ne3 {[%emt 0:04:25]} Nxe3 {[%emt 0:00:51]} 33. Bxe3 {[%emt 0:00:23]} Qc7 {[%emt 0:02:12]} 34. Bd4 {[%emt 0:02:44]} Rd8 {[%emt 0:01:16]} 35. Qe4 {[%emt 0:00:57]} b5 {[%emt 0:01:50]} 36. Rd3 {[%emt 0:02:55]} Qd7 {[%emt 0:01:31]} 37. Kf1 {[%emt 0:01:30]} Qd5 {[%emt 0:01:14]} 38. Qxd5 {[%emt 0:04:01]} Rxd5 {[%emt 0:00:01]} 39. Ke2 {[%emt 0:00:09]} Bxd4 {[%emt 0:01:18]} 40. cxd4 {[%emt 0:00:02]} Kf8 {[%emt 0:00:35]} 41. Ke3 {[%emt 0:00:04]} Ke7 {[%emt 0:00:29]} 42. Rc3 {[%emt 0:01:02]} Ke6 {[%emt 0:00:46]} 43. Rc8 {[%emt 0:00:30]} Rd7 {[%emt 0:00:26]} 44. Ke4 {[%emt 0:03:05]} f5+ {[%emt 0:00:21]} 45. Ke3 {[%emt 0:00:01]} Rd6 {[%emt 0:00:42]} 46. f3 {[%emt 0:01:29]} Rd5 {[%emt 0:00:36]} 47. Rc6+ {[%emt 0:00:19]} Rd6 {[%emt 0:00:08]} 48. Rxd6+ {[%emt 0:01:12]} Kxd6 {[%emt 0:00:01]} 49. Kf4 {[%emt 0:00:00]} Kd5 {[%emt 0:00:13]} 50. Kg5 {[%emt 0:00:08]} Kxd4 {[%emt 0:00:22]} 51. Kxg6 {[%emt 0:00:02]} f4 {[%emt 0:00:37]} 52. Kxh5 {[%emt 0:00:12]} Ke3 {[%emt 0:00:01]} 53. Kg4 {[%emt 0:00:08]} 1-0

[Event "26th Hit Open-A 2022"]
[Site "Nova Gorica"]
[Date "2022.09.15"]
[Round "1.40"]
[White "Mihelj, Edvard"]
[Black "Kepplinger, Lukas"]
[Result "0-1"]
[ECO "B20"]
[WhiteElo "1657"]
[BlackElo "1994"]
[Annotator "ChessBase"]
[PlyCount "92"]
[EventDate "2022.09.16"]
[EventType "swiss"]
[EventCountry "SLO"]
[SourceTitle "playchess.com"]
[Source "ChessBase"]
[SourceQuality "1"]
[TimeControl "5400+30"]

1. e4 {[%emt 0:00:14]} c5 {[%emt 0:00:09]} 2. Bc4 {[%emt 0:00:14]} e6 {[%emt 0:00:21]} 3. Nc3 {[%emt 0:00:35]} a6 {[%emt 0:00:22]} 4. a3 {[%emt 0:00:24]} Nc6 {[%emt 0:00:23]} 5. d3 {[%emt 0:00:45]} Nf6 {[%emt 0:00:47]} 6. Bg5 {[%emt 0:02:11]} Be7 {[%emt 0:00:41]} 7. Nf3 {[%emt 0:02:23]} h6 {[%emt 0:04:57]} 8. Bd2 {[%emt 0:05:44]} d5 {[%emt 0:07:12]} 9. Ba2 {[%emt 0:01:26]} dxe4 {[%emt 0:05:13]} 10. dxe4 {[%emt 0:01:22]} Qc7 {[%emt 0:01:31]} 11. h3 {[%emt 0:01:01]} O-O {[%emt 0:01:22]} 12. O-O {[%emt 0:07:32]} b5 {[%emt 0:02:56]} 13. Re1 {[%emt 0:06:26]} Rd8 {[%emt 0:08:11]} 14. Qc1 {[%emt 0:00:57]} c4 {[%emt 0:07:58]} 15. e5 {[%emt 0:04:35]} Nd5 {[%emt 0:08:54]} 16. Nxd5 {[%emt 0:00:55]} exd5 {[%emt 0:00:15]} 17. c3 {[%emt 0:07:20]} Bf5 {[%emt 0:05:10]} 18. Nd4 {[%emt 0:05:54]} Bg6 {[%emt 0:00:57]} 19. Bf4 {[%emt 0:02:45]} Nxd4 {[%emt 0:07:45]} 20. cxd4 {[%emt 0:00:16]} Qb6 {[%emt 0:00:23]} 21. Qd2 {[%emt 0:01:43]} Re8 {[%emt 0:01:02]} 22. Bb1 {[%emt 0:02:23]} Bxb1 {[%emt 0:00:32]} 23. Raxb1 {[%emt 0:00:10]} b4 {[%emt 0:00:51]} 24. Qd1 {[%emt 0:03:56]} a5 {[%emt 0:00:43]} 25. a4 {[%emt 0:02:46]} b3 {[%emt 0:00:00]} 26. Re3 {[%emt 0:01:21]} Ra6 {[%emt 0:03:35]} 27. Rg3 {[%emt 0:00:43]} Bf8 {[%emt 0:03:02]} 28. Be3 {[%emt 0:02:02]} Qc6 {[%emt 0:01:02]} 29. Ra1 {[%emt 0:02:16]} Qd7 {[%emt 0:00:20]} 30. h4 {[%emt 0:02:06]} Qf5 {[%emt 0:01:57]} 31. Rc1 {[%emt 0:00:30]} Rg6 {[%emt 0:01:31]} 32. Rxg6 {[%emt 0:00:41]} Qxg6 {[%emt 0:00:05]} 33. Qd2 {[%emt 0:00:44]} Bb4 {[%emt 0:00:18]} 34. Qe2 {[%emt 0:00:45]} c3 {[%emt 0:07:04]} 35. bxc3 {[%emt 0:00:58]} Ba3 {[%emt 0:01:14]} 36. Rf1 {[%emt 0:02:47]} Rb8 {[%emt 0:00:55]} 37. Qd1 {[%emt 0:03:07]} Qc6 {[%emt 0:00:43]} 38. Qg4 {[%emt 0:02:34]} Rb6 {[%emt 0:03:10]} 39. Bd2 {[%emt 0:01:38]} Bf8 {[%emt 0:03:36]} 40. Rb1 {[%emt 0:01:31]} Qxa4 {[%emt 0:00:11]} 41. Qd1 {[%emt 0:00:48]} Qc4 {[%emt 0:00:22]} 42. e6 {[%emt 0:01:55]} fxe6 {[%emt 0:00:18]} 43. Qh5 {[%emt 0:02:13]} Qd3 {[%emt 0:00:47]} 44. Qd1 {[%emt 0:00:22]} a4 {[%emt 0:00:45]} 45. Qe1 {[%emt 0:01:32]} a3 {[%emt 0:00:20]} 46. Bc1 {[%emt 0:00:57]} Qxb1 {[%emt 0:00:14]} 0-1

[Event "26th Hit Open-A 2022"]
[Site "Nova Gorica"]
[Date "2022.09.15"]
[Round "1.41"]
[White "Charaus, Florian"]
[Black "Vicic, Mark"]
[Result "1-0"]
[ECO "D36"]
[WhiteElo "1993"]
[BlackElo "1641"]
[Annotator "ChessBase"]
[PlyCount "57"]
[EventDate "2022.09.16"]
[EventType "swiss"]
[EventCountry "SLO"]
[SourceTitle "playchess.com"]
[Source "ChessBase"]
[SourceQuality "1"]
[TimeControl "5400+30"]

1. d4 {[%emt 0:00:03]} Nf6 {[%emt 0:00:10]} 2. c4 {[%emt 0:00:04]} e6 {[%emt 0:00:07]} 3. Nc3 {[%emt 0:00:17]} d5 {[%emt 0:00:06]} 4. cxd5 {[%emt 0:00:07]} exd5 {[%emt 0:00:07]} 5. Bg5 {[%emt 0:00:11]} c6 {[%emt 0:01:10]} 6. Qc2 {[%emt 0:00:05]} Bd6 {[%emt 0:04:01]} 7. e3 {[%emt 0:00:11]} Nbd7 {[%emt 0:01:22]} 8. Bd3 {[%emt 0:00:07]} b6 {[%emt 0:01:59]} 9. Nge2 {[%emt 0:00:09]} Bb7 {[%emt 0:00:32]} 10. O-O {[%emt 0:00:12]} Qc7 {[%emt 0:00:22]} 11. Bf4 {[%emt 0:02:20]} Rc8 {[%emt 0:02:39]} 12. Rac1 {[%emt 0:00:07]} Bxf4 {[%emt 0:00:42]} 13. Nxf4 {[%emt 0:01:07]} c5 {[%emt 0:01:44]} 14. dxc5 {[%emt 0:01:17]} bxc5 {[%emt 0:01:10]} 15. Nce2 {[%emt 0:06:59]} Qc6 {[%emt 0:03:12]} 16. Rfd1 {[%emt 0:08:25]} d4 {[%emt 0:15:56]} 17. exd4 {[%emt 0:03:19]} g5 {[%emt 0:02:38]} 18. d5 {[%emt 0:02:53]} Qd6 {[%emt 0:01:50]} 19. Nh3 {[%emt 0:02:22]} Ng4 {[%emt 0:05:06]} 20. Ng3 {[%emt 0:00:50]} Ngf6 {[%emt 0:04:14]} 21. Nxg5 {[%emt 0:08:17]} h5 {[%emt 0:05:48]} 22. Nf5 {[%emt 0:08:23]} Qf4 {[%emt 0:01:16]} 23. Qe2+ {[%emt 0:00:53]} Ne5 {[%emt 0:06:22]} 24. Nh3 {[%emt 0:00:30]} Qg4 {[%emt 0:01:21]} 25. Qxe5+ {[%emt 0:00:07]} Kf8 {[%emt 0:00:53]} 26. Qxf6 {[%emt 0:01:46]} Rh7 {[%emt 0:00:43]} 27. Ng5 {[%emt 0:00:53]} Bxd5 {[%emt 0:01:10]} 28. Nxh7+ {[%emt 0:00:17]} Kg8 {[%emt 0:00:01]} 29. Nh6# {[%emt 0:00:16]} 1-0

[Event "26th Hit Open-A 2022"]
[Site "Nova Gorica"]
[Date "2022.09.15"]
[Round "1.42"]
[White "Savoia, Serge"]
[Black "Vah, Denis"]
[Result "0-1"]
[ECO "C00"]
[WhiteElo "1636"]
[BlackElo "1988"]
[Annotator "ChessBase"]
[PlyCount "74"]
[EventDate "2022.09.16"]
[EventType "swiss"]
[EventCountry "SLO"]
[SourceTitle "playchess.com"]
[Source "ChessBase"]
[SourceQuality "1"]
[TimeControl "5400+30"]

1. e4 {[%emt 0:00:11]} e6 {[%emt 0:00:04]} 2. d3 {[%emt 0:00:08]} d5 {[%emt 0:00:04]} 3. c3 {[%emt 0:00:15]} Nf6 {[%emt 0:03:35]} 4. f3 {[%emt 0:00:11]} c5 {[%emt 0:01:26]} 5. g3 {[%emt 0:00:28]} Nc6 {[%emt 0:01:02]} 6. h4 {[%emt 0:00:48]} Bd6 {[%emt 0:07:49]} 7. Ne2 {[%emt 0:01:14]} Qc7 {[%emt 0:04:53]} 8. Rg1 {[%emt 0:00:57]} Bd7 {[%emt 0:08:23]} 9. a4 {[%emt 0:00:09]} O-O-O {[%emt 0:02:51]} 10. Na3 {[%emt 0:00:07]} a6 {[%emt 0:00:44]} 11. Bg5 {[%emt 0:00:15]} Ne5 {[%emt 0:13:42]} 12. Bg2 {[%emt 0:01:51]} dxe4 {[%emt 0:05:59]} 13. dxe4 {[%emt 0:02:00]} Bc6 {[%emt 0:00:39]} 14. Qc2 {[%emt 0:01:57]} Nd3+ {[%emt 0:00:53]} 15. Kf1 {[%emt 0:01:17]} Bxg3 {[%emt 0:03:47]} 16. Nd4 {[%emt 0:02:05]} cxd4 {[%emt 0:02:44]} 17. Qxd3 {[%emt 0:00:35]} dxc3 {[%emt 0:03:08]} 18. Qxc3 {[%emt 0:00:29]} Be5 {[%emt 0:00:10]} 19. Qc2 {[%emt 0:03:30]} Rd4 {[%emt 0:03:00]} 20. Nc4 {[%emt 0:02:52]} Bxe4 {[%emt 0:00:29]} 21. Nb6+ {[%emt 0:00:27]} Kb8 {[%emt 0:00:04]} 22. Qxc7+ {[%emt 0:00:43]} Bxc7 {[%emt 0:00:12]} 23. fxe4 {[%emt 0:02:38]} Bxb6 {[%emt 0:00:05]} 24. a5 {[%emt 0:01:41]} Bc7 {[%emt 0:01:01]} 25. Be3 {[%emt 0:02:27]} Rb4 {[%emt 0:00:18]} 26. Ra2 {[%emt 0:02:14]} Nxe4 {[%emt 0:00:43]} 27. Bb6 {[%emt 0:00:46]} Bh2 {[%emt 0:01:03]} 28. Bxe4 {[%emt 0:01:01]} Bxg1 {[%emt 0:00:05]} 29. Kxg1 {[%emt 0:00:52]} Rxe4 {[%emt 0:00:06]} 30. h5 {[%emt 0:00:48]} Rh4 {[%emt 0:00:19]} 31. b4 {[%emt 0:01:21]} Rxh5 {[%emt 0:00:11]} 32. Rd2 {[%emt 0:00:12]} Rd5 {[%emt 0:00:19]} 33. Rg2 {[%emt 0:00:40]} g5 {[%emt 0:00:27]} 34. Bf2 {[%emt 0:00:48]} Kc7 {[%emt 0:00:39]} 35. Bg3+ {[%emt 0:00:26]} Kd7 {[%emt 0:00:07]} 36. Rc2 {[%emt 0:00:22]} e5 {[%emt 0:00:15]} 37. Kf2 {[%emt 0:00:31]} f5 {[%emt 0:00:10]} 0-1

[Event "26th Hit Open-A 2022"]
[Site "Nova Gorica"]
[Date "2022.09.15"]
[Round "1.43"]
[White "Cirkvencic, Franci"]
[Black "Zlatanovic, Marcus"]
[Result "1-0"]
[ECO "D02"]
[WhiteElo "1987"]
[BlackElo "1636"]
[Annotator "ChessBase"]
[PlyCount "115"]
[EventDate "2022.09.16"]
[EventType "swiss"]
[EventCountry "SLO"]
[SourceTitle "playchess.com"]
[Source "ChessBase"]
[SourceQuality "1"]
[TimeControl "5400+30"]

1. d4 {[%emt 0:00:07]} Nf6 {[%emt 0:00:05]} 2. Nf3 {[%emt 0:00:08]} g6 {[%emt 0:00:09]} 3. g3 {[%emt 0:01:17]} c6 {[%emt 0:00:32]} 4. Bg2 {[%emt 0:00:25]} Bg7 {[%emt 0:00:06]} 5. O-O {[%emt 0:00:08]} O-O {[%emt 0:00:04]} 6. b3 {[%emt 0:00:39]} d5 {[%emt 0:00:10]} 7. Bb2 {[%emt 0:00:08]} Bf5 {[%emt 0:02:07]} 8. Nbd2 {[%emt 0:00:45]} Qc8 {[%emt 0:03:53]} 9. Re1 {[%emt 0:01:21]} Bh3 {[%emt 0:02:47]} 10. Bh1 {[%emt 0:00:37]} h6 {[%emt 0:00:14]} 11. c4 {[%emt 0:02:56]} b6 {[%emt 0:05:28]} 12. Rc1 {[%emt 0:01:06]} Qa6 {[%emt 0:01:21]} 13. a4 {[%emt 0:01:49]} Nbd7 {[%emt 0:01:01]} 14. Ne5 {[%emt 0:03:40]} Rac8 {[%emt 0:12:07]} 15. cxd5 {[%emt 0:07:30]} cxd5 {[%emt 0:00:17]} 16. Nc6 {[%emt 0:01:24]} Rfe8 {[%emt 0:01:33]} 17. b4 {[%emt 0:02:18]} Qb7 {[%emt 0:03:19]} 18. b5 {[%emt 0:01:23]} Nb8 {[%emt 0:03:35]} 19. Nb4 {[%emt 0:02:15]} a5 {[%emt 0:04:47]} 20. Nd3 {[%emt 0:00:29]} Nbd7 {[%emt 0:02:04]} 21. Qb3 {[%emt 0:02:21]} Bf5 {[%emt 0:01:28]} 22. Ne5 {[%emt 0:04:13]} e6 {[%emt 0:03:31]} 23. Ndf3 {[%emt 0:03:56]} Be4 {[%emt 0:03:47]} 24. Nc6 {[%emt 0:03:15]} Nb8 {[%emt 0:01:08]} 25. Nfe5 {[%emt 0:00:54]} Bxh1 {[%emt 0:00:09]} 26. Kxh1 {[%emt 0:00:06]} Nfd7 {[%emt 0:00:19]} 27. Nxd7 {[%emt 0:03:27]} Nxd7 {[%emt 0:00:20]} 28. Rc2 {[%emt 0:00:19]} Nb8 {[%emt 0:07:11]} 29. Rec1 {[%emt 0:01:48]} Nxc6 {[%emt 0:00:06]} 30. Rxc6 {[%emt 0:00:28]} Rxc6 {[%emt 0:00:05]} 31. Rxc6 {[%emt 0:00:27]} Rc8 {[%emt 0:00:01]} 32. Qc2 {[%emt 0:00:42]} Rxc6 {[%emt 0:00:04]} 33. Qxc6 {[%emt 0:00:25]} Qb8 {[%emt 0:00:01]} 34. Bc3 {[%emt 0:07:23]} Bf8 {[%emt 0:00:42]} 35. Bd2 {[%emt 0:00:19]} Qd6 {[%emt 0:03:10]} 36. Qxd6 {[%emt 0:02:09]} Bxd6 {[%emt 0:00:02]} 37. Bxh6 {[%emt 0:00:15]} Kh7 {[%emt 0:00:37]} 38. Bg5 {[%emt 0:00:37]} Bc7 {[%emt 0:00:10]} 39. Bf6 {[%emt 0:01:12]} Kh6 {[%emt 0:00:31]} 40. h4 {[%emt 0:00:21]} Kh5 {[%emt 0:00:10]} 41. Kg2 {[%emt 0:00:30]} Kg4 {[%emt 0:00:43]} 42. f3+ {[%emt 0:01:02]} Kh5 {[%emt 0:00:02]} 43. Kh3 {[%emt 0:00:22]} Kh6 {[%emt 0:00:08]} 44. Kg4 {[%emt 0:04:22]} Kh7 {[%emt 0:00:16]} 45. e4 {[%emt 0:03:15]} Kh6 {[%emt 0:00:26]} 46. e5 {[%emt 0:01:52]} Kh7 {[%emt 0:00:13]} 47. Be7 {[%emt 0:01:06]} Kh6 {[%emt 0:00:26]} 48. f4 {[%emt 0:01:15]} Kh7 {[%emt 0:00:21]} 49. Kg5 {[%emt 0:00:11]} Kg7 {[%emt 0:01:42]} 50. h5 {[%emt 0:01:17]} gxh5 {[%emt 0:00:00]} 51. Kxh5 {[%emt 0:00:21]} Kh7 {[%emt 0:00:00]} 52. Kg5 {[%emt 0:00:47]} Kg7 {[%emt 0:00:00]} 53. g4 {[%emt 0:01:45]} Kh7 {[%emt 0:00:00]} 54. Kf6 {[%emt 0:00:12]} Kg8 {[%emt 0:00:00]} 55. g5 {[%emt 0:00:19]} Bb8 {[%emt 0:00:00]} 56. Bd6 {[%emt 0:00:30]} Ba7 {[%emt 0:00:09]} 57. g6 {[%emt 0:00:14]} fxg6 {[%emt 0:01:16]} 58. Kxg6 {[%emt 0:00:08]} 1-0

[Event "26th Hit Open-A 2022"]
[Site "Nova Gorica"]
[Date "2022.09.15"]
[Round "1.44"]
[White "Oestmann, Lukas"]
[Black "Both, Aaron"]
[Result "1/2-1/2"]
[ECO "B42"]
[WhiteElo "1620"]
[BlackElo "1963"]
[Annotator "TA"]
[PlyCount "95"]
[EventDate "2022.09.16"]
[EventType "swiss"]
[EventCountry "SLO"]
[SourceTitle "playchess.com"]
[Source "ChessBase"]
[SourceQuality "1"]
[TimeControl "5400+30"]

{[%evp 19,95,19,26,17,30,27,32,11,71,33,58,18,29,5,116,130,241,251,250,257,285,290,275,273,316,318,308,302,475,221,325,198,182,93,237,225,216,200,200,174,155,8,8,8,8,8,8,8,70,0,7,4,8,0,0,0,0,0,0,0,0,0,0,0,0,0,0,0,0,0,0,0,0,0,0,0,0,0]} 1. e4 {[%emt 0:00:04]} c5 {[%emt 0:00:05]} 2. Nf3 {[%emt 0:00:06]} e6 {[%emt 0:00:06]} 3. d4 {[%emt 0:00:03]} cxd4 {[%emt 0:00:07]} 4. Nxd4 {[%emt 0:00:02]} a6 {[%emt 0:00:08]} 5. Bd3 {[%emt 0:00:04]} Nf6 {[%emt 0:00:07]} 6. O-O {[%emt 0:01:05]} Qc7 {[%emt 0:01:35]} 7. Qe2 {[%emt 0:00:22]} d6 {[%emt 0:00:12]} 8. c4 {[%emt 0:00:45]} g6 {[%emt 0:01:23]} 9. b3 {[%emt 0:07:22]} Bg7 {[%emt 0:00:15]} 10. Bb2 {[%emt 0:00:15][%cal Bc1b2,Bb2e5,Be5d6][%mdl 32]} O-O {[%emt 0:03:37]} 11. Kh1 {[%emt 0:07:24] B42: Sicilian: Kan Variation: 5 Bd3.} Nc6 {[%emt 0:04:12]} 12. Nxc6 {[%emt 0:01:38]} bxc6 {[%emt 0:00:14]} 13. f4 {[%emt 0:02:11][%cal Oc4c5] [#] White is slightly better.} d5 $146 {[%emt 0:02:50]} (13... c5 $11) ({Predecessor:} 13... e5 14. c5 Nh5 15. f5 Rd8 16. cxd6 Qxd6 17. Bc4 Nf4 18. Qc2 gxf5 19. exf5 Bb7 {0-1 (42) Jaeger,F (2020)-Romsdal,T Tromsoe 1997}) 14. Be5 {[%emt 0:08:37]} (14. e5 $5 {[%cal Re5f6]} Nd7 15. Nc3 $14) 14... Qa7 {[%emt 0:05:07]} 15. Nd2 {[%emt 0:02:10][%cal Bb1d2,Bd2e4,Be4d6][%mdl 32]} Bb7 {[%emt 0:05:56]} 16. Bd6 {[%emt 0:12:14]} Nxe4 {[%emt 0:07:07]} (16... dxe4 $11 17. Nxe4 Nxe4 18. Bxe4 (18. Bxf8 $2 Nc3 $19) 18... Bxa1 19. Bxf8 Rxf8 20. Rxa1 Rd8) 17. Bxe4 $16 {[%emt 0:00:34]} (17. Nxe4 $6 Bxa1 18. Bc5 (18. Bxf8 dxe4 19. Bxe4 Rxf8 $11) 18... Qb8 $11) (17. Bxf8 $6 Nc3 18. Qe1 Rxf8 $11) 17... Bxa1 {[%emt 0:00:24]} (17... Rfd8 $16) 18. Rxa1 $18 {[%emt 0:00:18]} ({Stronger than} 18. Bxf8 Bd4 $11) 18... dxe4 {[%emt 0:06:43]} 19. Nxe4 {[%emt 0:02:26]} ({Less strong is} 19. Bxf8 e3 $16) 19... f6 {[%emt 0:06:46]} 20. Bxf8 {[%emt 0:02:27]} Rxf8 {[%emt 0:05:44]} 21. Nd6 {[%emt 0:03:44]} e5 {[%emt 0:03:55]} 22. fxe5 {[%emt 0:02:48]} fxe5 {[%emt 0:00:34]} 23. Qxe5 {[%emt 0:01:47]} Qf2 {[%emt 0:01:00]} (23... Ba8 $142 24. c5 Qg7 25. Qe6+ Kh8) 24. Qe1 {[%emt 0:03:57]} ({Weaker is} 24. Qe6+ Kh8 25. Qe5+ Kg8 $18) (24. h3 $142) 24... Qxe1+ {[%emt 0:02:16]} 25. Rxe1 {[%emt 0:00:03][%mdl 4096] Endgame KRB-KRN} Bc8 {[%emt 0:00:16]} 26. Re8 {[%emt 0:01:49]} ({White should play} 26. h3 $18) 26... Bd7 {[%emt 0:05:41] [#]} (26... Rxe8 $16 {was necessary.} 27. Nxe8 Bf5) 27. Rxf8+ $1 {[%emt 0:00:34]} Kxf8 {[%emt 0:00:06] KB-KN} 28. Kg1 {[%emt 0:01:53]} Ke7 {[%emt 0:00:25]} 29. Ne4 {[%emt 0:02:47]} Bf5 {[%emt 0:00:30]} 30. Nc3 {[%emt 0:09:18]} (30. Nc5 $16) 30... Kd6 $11 {[%emt 0:00:20]} 31. Kf2 {[%emt 0:00:14]} Kc5 {[%emt 0:00:25]} 32. Ke3 {[%emt 0:00:22] [#] aiming for a3.} Kb4 {[%emt 0:00:38]} 33. Kd2 {[%emt 0:00:29]} Ka3 {[%emt 0:02:26]} (33... a5 $11) 34. Kc1 {[%emt 0:01:45]} (34. Ne2 $14) 34... h5 {[%emt 0:00:49] The position is equal.} 35. g3 {[%emt 0:00:29]} a5 {[%emt 0:03:27]} 36. h4 {[%emt 0:01:32]} Bd3 {[%emt 0:02:30]} 37. Kd2 {[%emt 0:01:10]} Bf5 {[%emt 0:00:16]} 38. Kc1 {[%emt 0:01:01]} Bh3 {[%emt 0:07:35]} 39. Kd2 {[%emt 0:01:09]} Kb2 {[%emt 0:00:56]} 40. Na4+ {[%emt 0:00:46]} Kxa2 {[%emt 0:00:31]} 41. Kc3 {[%emt 0:00:09]} Ka3 {[%emt 0:01:06]} 42. Nc5 {[%emt 0:01:58]} Bf5 {[%emt 0:01:34]} 43. Nb7 {[%emt 0:02:13]} a4 {[%emt 0:00:19]} 44. bxa4 {[%emt 0:01:28]} Kxa4 {[%emt 0:00:08]} 45. Kd4 {[%emt 0:00:28] Threatens to win with Nd8.} Kb4 {[%emt 0:00:36]} 46. c5 {[%emt 0:00:23]} Bh3 {[%emt 0:03:18]} 47. Nd8 {[%emt 0:01:33]} Kb5 {[%emt 0:03:28]} 48. Nf7 {[%emt 0:01:07] Blacks defense is rewarded with a draw.  Weighted Error Value: White=0.31/Black=0.31} 1/2-1/2

[Event "26th Hit Open-A 2022"]
[Site "Nova Gorica"]
[Date "2022.09.15"]
[Round "1.45"]
[White "Goroshkova, Liudmila"]
[Black "Petrovcic, Cvetko"]
[Result "1-0"]
[ECO "C42"]
[WhiteElo "1961"]
[BlackElo "1602"]
[Annotator "TA"]
[PlyCount "71"]
[EventDate "2022.09.16"]
[EventType "swiss"]
[EventCountry "SLO"]
[SourceTitle "playchess.com"]
[Source "ChessBase"]
[SourceQuality "1"]
[TimeControl "5400+30"]

{[%evp 9,71,107,112,114,193,194,225,226,253,244,298,250,288,254,279,254,341,325,493,499,491,493,490,458,733,719,864,520,1133,1102,1120,613,822,792,818,816,778,783,863,842,829,805,3000,606,597,543,991,1489,1294,1184,1149,669,787,783,4037,2718,29980,29981,29987,29988,29989,29990,29991,29992]} 1. e4 {[%emt 0:00:16]} e5 {[%emt 0:00:13]} 2. Nf3 {[%emt 0:00:11]} Nf6 {[%emt 0:00:32]} 3. Nxe5 {[%emt 0:00:14]} Nc6 {[%emt 0:02:14]} 4. Nxc6 {[%emt 0:00:54]} dxc6 {[%emt 0:01:11]} 5. d3 {[%emt 0:00:54][%cal Bd2d3,Bd3d4][%mdl 32]} Bc5 {[%emt 0:01:21] aiming for ...Ng4.} 6. Be2 {[%emt 0:01:22] Against Ng4. C42: Petroff Defence: 3 Nxe5 and unusual White 3rd moves.} Qd4 {[%emt 0:02:17] [#]} (6... Ng4 $16 7. Bxg4 Qh4) 7. O-O $1 $18 {[%emt 0:01:17]} h5 {[%emt 0:02:40]} 8. c3 {[%emt 0:00:36] [#] White is clearly better.} Qd7 $146 {[%emt 0:02:47]} (8... Qd6 $2 9. d4 Ng4 10. e5 Nxe5 11. Re1 $18) ({Predecessor:} 8... Qd8 9. d4 Be7 10. e5 Nd5 11. Bxh5 Bf5 12. Qe2 Qd7 13. Re1 g6 14. Bf3 O-O-O 15. a3 Rh7 16. c4 Nb6 17. a4 Qxd4 18. Be3 Qxe5 19. Bxb6 Qxh2+ {0-1 (19) Szoukup,I (1474)-Alotaibi,K (1440) Budapest 2019}) 9. d4 {[%emt 0:03:52]} Bb6 {[%emt 0:00:11]} 10. Nd2 {[%emt 0:01:16]} Qe7 {[%emt 0:01:46]} 11. Re1 {[%emt 0:03:50]} Bg4 {[%emt 0:00:36]} 12. f3 {[%emt 0:00:41]} Bd7 {[%emt 0:11:41]} 13. Nc4 {[%emt 0:01:57]} O-O-O {[%emt 0:00:17]} (13... Be6 {was worth a try.} 14. Bg5 Qf8) 14. a4 {[%emt 0:02:31]} a6 {[%emt 0:00:41]} 15. Nxb6+ {[%emt 0:00:28]} cxb6 {[%emt 0:00:25]} 16. Qb3 {[%emt 0:00:19]} Ng4 {[%emt 0:03:23]} (16... Be6 $142 17. Qxb6 h4) 17. fxg4 {[%emt 0:01:10]} hxg4 {[%emt 0:00:26]} 18. Bxa6 {[%emt 0:24:02]} Rxh2 {[%emt 0:00:30]} (18... bxa6 $142 19. Qxb6 Be8 20. Qxa6+ Qb7) 19. Bf4 {[%emt 0:00:25]} ({Stronger than} 19. Kxh2 Qh4+ 20. Kg1 Qxe1+ 21. Bf1 Qh4 $11) 19... Qh4 {[%emt 0:10:33]} 20. Bxh2 {[%emt 0:01:30]} g3 {[%emt 0:01:10] [#]} 21. Bxg3 {[%emt 0:00:19]} Qxg3 {[%emt 0:00:02] [#]} 22. Bxb7+ $1 {[%emt 0:03:28]} Kxb7 {[%emt 0:00:35]} 23. a5 {[%emt 0:01:01][%cal Ba4a5,Ba5a6][%mdl 32]} b5 {[%emt 0:00:42]} 24. a6+ {[%emt 0:00:17]} Ka8 {[%emt 0:03:32]} 25. Qxf7 {[%emt 0:08:10] Strongly threatening e5.} Rh8 {[%emt 0:00:50]} 26. Qf3 {[%emt 0:01:54]} Qh2+ {[%emt 0:00:29]} 27. Kf1 {[%emt 0:02:56]} Rh3 {[%emt 0:01:58]} 28. Qf8+ {[%emt 0:02:53]} Ka7 {[%emt 0:00:15]} 29. Qf7 {[%emt 0:00:46]} Qc7 {[%emt 0:00:40]} 30. Qf2 {[%emt 0:04:08]} Rh6 {[%emt 0:03:53]} 31. e5 {[%emt 0:01:43] Prevents Rf6.} Be6 {[%emt 0:00:33]} 32. d5+ {[%emt 0:01:46]} Ka8 {[%emt 0:01:29]} 33. dxe6 {[%emt 0:02:53] White mates.} Rh1+ {[%emt 0:00:22]} 34. Ke2 {[%emt 0:00:12][%cal Bf1e2,Be2d2,Bd2c2][%mdl 32]} Qxe5+ {[%emt 0:00:10]} 35. Kd2 {[%emt 0:00:37]} Qd5+ {[%emt 0:00:22]} 36. Kc2 {[%emt 0:00:14] Black got outplayed after the opening.  Weighted Error Value: White=1.00/Black=0.50} 1-0